[Event "*** Titled Tuesday Blitz"]
[Site "Chess.com"]
[Date "2020.11.10"]
[Round "3"]
[White "PaulfromSPb"]
[Black "ChessWarrior7197"]
[Result "0-1"]
[WhiteElo "2708"]
[BlackElo "3002"]
[TimeControl "180+1"]
[EndTime "10:33:37 PST"]
[Termination "ChessWarrior7197 won by resignation"]

1. d4 {[%clk 0:03:00.9]} 1... d5 {[%clk 0:03:00.2]} 2. Bf4 {[%clk 0:03:01]} 2...
Nf6 {[%clk 0:03:00.1]} 3. e3 {[%clk 0:03:00.8]} 3... c5 {[%clk 0:03:01]} 4. c3
{[%clk 0:03:00.5]} 4... Nc6 {[%clk 0:03:01.1]} 5. Nd2 {[%clk 0:03:00.3]} 5...
Qb6 {[%clk 0:02:54.1]} 6. Qc2 {[%clk 0:02:58.4]} 6... g6 {[%clk 0:02:53.6]} 7.
Ngf3 {[%clk 0:02:38.1]} 7... Bf5 {[%clk 0:02:53.1]} 8. Qc1 {[%clk 0:02:35.3]}
8... Rc8 {[%clk 0:02:52.2]} 9. dxc5 {[%clk 0:02:22.8]} 9... Qxc5 {[%clk
0:02:53.1]} 10. Be2 {[%clk 0:02:22.1]} 10... Bg7 {[%clk 0:02:52.9]} 11. h3
{[%clk 0:02:21.8]} 11... O-O {[%clk 0:02:53.2]} 12. O-O {[%clk 0:02:21.5]} 12...
Qb6 {[%clk 0:02:52.8]} 13. Bh2 {[%clk 0:02:18]} 13... Nd7 {[%clk 0:02:48.4]} 14.
Nh4 {[%clk 0:02:11.7]} 14... Be6 {[%clk 0:02:46.8]} 15. Nb3 {[%clk 0:02:09.5]}
15... Nc5 {[%clk 0:02:45.3]} 16. Nxc5 {[%clk 0:02:02.3]} 16... Qxc5 {[%clk
0:02:46.2]} 17. Qd2 {[%clk 0:02:00.6]} 17... Rfd8 {[%clk 0:02:41.8]} 18. Rfd1
{[%clk 0:01:55.4]} 18... b5 {[%clk 0:02:39.7]} 19. Rac1 {[%clk 0:01:52.5]} 19...
b4 {[%clk 0:02:36.3]} 20. cxb4 {[%clk 0:01:35.1]} 20... Qxb4 {[%clk 0:02:37.2]}
21. Qxb4 {[%clk 0:01:27]} 21... Nxb4 {[%clk 0:02:38.1]} 22. Rxc8 {[%clk
0:01:21.4]} 22... Rxc8 {[%clk 0:02:36.1]} 23. a3 {[%clk 0:01:21.6]} 23... Rc2
{[%clk 0:02:30.9]} 24. Kf1 {[%clk 0:01:02.8]} 24... Na2 {[%clk 0:02:28.2]} 25.
Bf3 {[%clk 0:00:54.3]} 25... Rxb2 {[%clk 0:02:27.1]} 26. g4 {[%clk 0:00:46.3]}
26... d4 {[%clk 0:02:21.4]} 27. exd4 {[%clk 0:00:43.7]} 27... Nc3 {[%clk
0:02:21.8]} 28. Rc1 {[%clk 0:00:38.3]} 28... Bxd4 {[%clk 0:02:22]} 29. Bg3
{[%clk 0:00:38.6]} 29... Bc4+ {[%clk 0:02:21.5]} 30. Kg2 {[%clk 0:00:38.5]}
30... e6 {[%clk 0:02:17.3]} 31. Bc6 {[%clk 0:00:36]} 31... Ba6 {[%clk
0:02:09.9]} 32. Nf3 {[%clk 0:00:35]} 32... Ne2 {[%clk 0:02:10.4]} 33. Rd1 {[%clk
0:00:29.5]} 33... Bf6 {[%clk 0:01:54.3]} 34. Be5 {[%clk 0:00:27.6]} 34... Bxe5
{[%clk 0:01:51.8]} 35. Nxe5 {[%clk 0:00:28.5]} 35... Nf4+ {[%clk 0:01:52.2]} 36.
Kg3 {[%clk 0:00:27.5]} 36... g5 {[%clk 0:01:33.4]} 37. Rd8+ {[%clk 0:00:25.7]}
37... Kg7 {[%clk 0:01:34]} 38. Rd7 {[%clk 0:00:26]} 38... Rb3+ {[%clk
0:01:34.6]} 39. f3 {[%clk 0:00:26.2]} 39... Rb2 {[%clk 0:01:34.7]} 40. Rxf7+
{[%clk 0:00:21.5]} 40... Kg8 {[%clk 0:01:34.9]} 41. Rxf4 {[%clk 0:00:20.3]}
41... gxf4+ {[%clk 0:01:35.8]} 42. Kxf4 {[%clk 0:00:21.2]} 42... Bb5 {[%clk
0:01:32.8]} 43. Be4 {[%clk 0:00:14.9]} 43... Ra2 {[%clk 0:01:33]} 44. Kg5 {[%clk
0:00:13.2]} 44... Rxa3 {[%clk 0:01:32.1]} 45. Kh6 {[%clk 0:00:13.8]} 45... a5
{[%clk 0:01:28.2]} 46. Bxh7+ {[%clk 0:00:13.8]} 46... Kf8 {[%clk 0:01:28.8]} 47.
g5 {[%clk 0:00:14.6]} 47... Be8 {[%clk 0:01:18.6]} 48. h4 {[%clk 0:00:14.7]}
48... a4 {[%clk 0:01:08.4]} 49. h5 {[%clk 0:00:14.3]} 49... Bxh5 {[%clk
0:01:09]} 50. Kxh5 {[%clk 0:00:14]} 50... Kg7 {[%clk 0:01:08.6]} 51. Bc2 {[%clk
0:00:11.1]} 51... Ra2 {[%clk 0:01:09.1]} 52. Bd3 {[%clk 0:00:08.6]} 52... a3
{[%clk 0:00:57.1]} 53. Bc4 {[%clk 0:00:08.5]} 53... Re2 {[%clk 0:00:45.6]} 54.
f4 {[%clk 0:00:05.6]} 54... Re4 {[%clk 0:00:35.7]} 55. Bxe6 {[%clk 0:00:04.9]}
55... Rxf4 {[%clk 0:00:36.3]} 56. Ng4 {[%clk 0:00:03.5]} 56... Re4 {[%clk
0:00:34]} 57. Bd5 {[%clk 0:00:03.5]} 57... Rd4 {[%clk 0:00:32.8]} 58. Be6 {[%clk
0:00:03.5]} 58... Rd6 {[%clk 0:00:33.2]} 59. Bc4 {[%clk 0:00:03.3]} 59... Rd1
{[%clk 0:00:21.4]} 60. Nf6 {[%clk 0:00:02.2]} 60... Rh1+ {[%clk 0:00:17.5]} 61.
Kg4 {[%clk 0:00:02]} 61... Rc1 {[%clk 0:00:18.4]} 62. Be6 {[%clk 0:00:01.7]}
62... Re1 {[%clk 0:00:18.2]} 63. Bd5 {[%clk 0:00:01.8]} 63... Rd1 {[%clk
0:00:18.3]} 64. Be6 {[%clk 0:00:02]} 64... Kg6 {[%clk 0:00:18.7]} 65. Bg8 {[%clk
0:00:01.8]} 65... Rd8 {[%clk 0:00:17.9]} 66. Kf4 {[%clk 0:00:02.7]} 66... Rxg8
{[%clk 0:00:17.7]} 67. Nxg8 {[%clk 0:00:03.6]} 67... a2 {[%clk 0:00:18.2]} 68.
Ne7+ {[%clk 0:00:04.5]} 68... Kf7 {[%clk 0:00:18.3]} 69. Nf5 {[%clk 0:00:03.7]}
69... a1=Q {[%clk 0:00:19]} 70. Ne3 {[%clk 0:00:03.9]} 70... Qd4+ {[%clk
0:00:18.3]} 71. Kf3 {[%clk 0:00:03.6]} 71... Kg6 {[%clk 0:00:19.2]} 72. Ng2
{[%clk 0:00:03.8]} 72... Kxg5 {[%clk 0:00:19.1]} 73. Ne3 {[%clk 0:00:04.7]}
73... Qf4+ {[%clk 0:00:19]} 74. Ke2 {[%clk 0:00:05.6]} 74... Qe4 {[%clk
0:00:19.8]} 75. Kf2 {[%clk 0:00:05.5]} 75... Kh4 {[%clk 0:00:18.9]} 76. Ng2+
{[%clk 0:00:06.4]} 76... Kh3 {[%clk 0:00:19.4]} 77. Ne3 {[%clk 0:00:06.8]} 77...
Qd3 {[%clk 0:00:13.4]} 78. Kf3 {[%clk 0:00:06.6]} 78... Qd4 {[%clk 0:00:12.6]}
79. Nf5 {[%clk 0:00:05.7]} 79... Qg4+ {[%clk 0:00:12.3]} 0-1

[Event "*** Titled Tuesday Blitz"]
[Site "Chess.com"]
[Date "2020.11.10"]
[Round "3"]
[White "GM4life"]
[Black "mamonika"]
[Result "1/2-1/2"]
[WhiteElo "2260"]
[BlackElo "2007"]
[TimeControl "180+1"]
[EndTime "10:33:39 PST"]
[Termination "Game drawn by stalemate"]

1. e4 {[%clk 0:03:00.9]} 1... e5 {[%clk 0:02:15.5]} 2. Nf3 {[%clk 0:03:00.2]}
2... Nc6 {[%clk 0:02:15.2]} 3. Bb5 {[%clk 0:02:59.6]} 3... a6 {[%clk 0:02:15.5]}
4. Ba4 {[%clk 0:02:55]} 4... g6 {[%clk 0:02:14.5]} 5. O-O {[%clk 0:02:50.9]}
5... d6 {[%clk 0:02:13.5]} 6. c3 {[%clk 0:02:51.3]} 6... Bg7 {[%clk 0:02:12.2]}
7. d4 {[%clk 0:02:51.3]} 7... Bd7 {[%clk 0:02:11.9]} 8. h3 {[%clk 0:02:50.4]}
8... h6 {[%clk 0:02:09.9]} 9. Re1 {[%clk 0:02:46.9]} 9... Nge7 {[%clk 0:02:08]}
10. d5 {[%clk 0:02:42.3]} 10... Nb8 {[%clk 0:02:08]} 11. c4 {[%clk 0:02:37.6]}
11... O-O {[%clk 0:02:07.4]} 12. Nc3 {[%clk 0:02:37.5]} 12... Bxa4 {[%clk
0:02:04.4]} 13. Nxa4 {[%clk 0:02:37.3]} 13... Nd7 {[%clk 0:02:04.4]} 14. Be3
{[%clk 0:02:37]} 14... f5 {[%clk 0:02:03.5]} 15. Qd3 {[%clk 0:02:21.6]} 15...
Nf6 {[%clk 0:02:03]} 16. Nc3 {[%clk 0:02:16.6]} 16... Qd7 {[%clk 0:02:02.9]} 17.
b4 {[%clk 0:02:14.2]} 17... g5 {[%clk 0:02:03]} 18. exf5 {[%clk 0:02:10.7]}
18... Nxf5 {[%clk 0:02:01.2]} 19. Ne4 {[%clk 0:02:02.4]} 19... Rae8 {[%clk
0:01:54.5]} 20. Rad1 {[%clk 0:01:54.2]} 20... Nh5 {[%clk 0:01:54.2]} 21. c5
{[%clk 0:01:51.1]} 21... Nxe3 {[%clk 0:01:45.6]} 22. Qxe3 {[%clk 0:01:43.8]}
22... Rf4 {[%clk 0:01:26.6]} 23. Nh2 {[%clk 0:01:42]} 23... Ref8 {[%clk
0:01:22]} 24. cxd6 {[%clk 0:01:29.5]} 24... cxd6 {[%clk 0:01:21.9]} 25. Qb6
{[%clk 0:01:29.2]} 25... Qf5 {[%clk 0:00:49.3]} 26. Nxd6 {[%clk 0:01:18.9]}
26... Qf6 {[%clk 0:00:39.3]} 27. f3 {[%clk 0:01:12.5]} 27... Rd8 {[%clk
0:00:36.5]} 28. Qxb7 {[%clk 0:00:44.6]} 28... Qxd6 {[%clk 0:00:35.9]} 29. Ng4
{[%clk 0:00:43.8]} 29... Rxb4 {[%clk 0:00:35.4]} 30. Qc6 {[%clk 0:00:40.7]}
30... Rb6 {[%clk 0:00:31.8]} 31. Qc4 {[%clk 0:00:36.6]} 31... Nf4 {[%clk
0:00:27.5]} 32. Ne3 {[%clk 0:00:35.4]} 32... Rb4 {[%clk 0:00:24.2]} 33. Qc6
{[%clk 0:00:31.7]} 33... Rd4 {[%clk 0:00:21.4]} 34. Nf5 {[%clk 0:00:22.8]} 34...
Qxc6 {[%clk 0:00:20.5]} 35. Ne7+ {[%clk 0:00:17.4]} 35... Kf7 {[%clk 0:00:21.1]}
36. Nxc6 {[%clk 0:00:17.5]} 36... Rxd1 {[%clk 0:00:21.4]} 37. Nxd8+ {[%clk
0:00:17.6]} 37... Ke8 {[%clk 0:00:20.8]} 38. Rxd1 {[%clk 0:00:16.6]} 38... Kxd8
{[%clk 0:00:21.3]} 39. Kf2 {[%clk 0:00:17.1]} 39... Kd7 {[%clk 0:00:21.4]} 40.
g3 {[%clk 0:00:17.2]} 40... Nxh3+ {[%clk 0:00:19.1]} 41. Ke3 {[%clk 0:00:17.8]}
41... Kd6 {[%clk 0:00:18.1]} 42. Rh1 {[%clk 0:00:17]} 42... g4 {[%clk
0:00:18.6]} 43. fxg4 {[%clk 0:00:17.2]} 43... Ng5 {[%clk 0:00:19]} 44. Rd1
{[%clk 0:00:17.6]} 44... Bf6 {[%clk 0:00:19.3]} 45. a3 {[%clk 0:00:16.6]} 45...
e4 {[%clk 0:00:19.8]} 46. a4 {[%clk 0:00:17.5]} 46... Be5 {[%clk 0:00:20]} 47.
Rb1 {[%clk 0:00:17]} 47... Kxd5 {[%clk 0:00:19.1]} 48. Rb6 {[%clk 0:00:17.6]}
48... Bd6 {[%clk 0:00:18.3]} 49. Rxa6 {[%clk 0:00:16.8]} 49... Bc5+ {[%clk
0:00:18.8]} 50. Kf4 {[%clk 0:00:17.3]} 50... Ne6+ {[%clk 0:00:19]} 51. Kf5
{[%clk 0:00:15.8]} 51... Nd4+ {[%clk 0:00:19.4]} 52. Kf4 {[%clk 0:00:16.2]}
52... Ne2+ {[%clk 0:00:19.5]} 53. Kf5 {[%clk 0:00:16.1]} 53... Nxg3+ {[%clk
0:00:20.1]} 54. Kg6 {[%clk 0:00:15.9]} 54... e3 {[%clk 0:00:19.9]} 55. Kxh6
{[%clk 0:00:16.5]} 55... e2 {[%clk 0:00:20.2]} 56. g5 {[%clk 0:00:12.7]} 56...
e1=Q {[%clk 0:00:19.7]} 57. g6 {[%clk 0:00:13.6]} 57... Qh1+ {[%clk 0:00:18.5]}
58. Kg7 {[%clk 0:00:13.8]} 58... Nf5+ {[%clk 0:00:18.8]} 59. Kf7 {[%clk
0:00:14.2]} 59... Qh6 {[%clk 0:00:17.7]} 60. Kf6 {[%clk 0:00:12.9]} 60... Nd6
{[%clk 0:00:16.4]} 61. Ra5 {[%clk 0:00:12.5]} 61... Kc6 {[%clk 0:00:16.2]} 62.
Ke6 {[%clk 0:00:12.4]} 62... Qxg6+ {[%clk 0:00:16.2]} 63. Ke5 {[%clk 0:00:13.3]}
63... Qe8+ {[%clk 0:00:16.1]} 64. Kf6 {[%clk 0:00:14.2]} 64... Qf7+ {[%clk
0:00:15.7]} 65. Ke5 {[%clk 0:00:14]} 65... Qd5+ {[%clk 0:00:16]} 66. Kf6 {[%clk
0:00:14.2]} 66... Bd4+ {[%clk 0:00:16.9]} 67. Kg6 {[%clk 0:00:13.7]} 67... Qe6+
{[%clk 0:00:17.1]} 68. Kh5 {[%clk 0:00:13.6]} 68... Qf5+ {[%clk 0:00:16.9]} 69.
Rxf5 {[%clk 0:00:13.9]} 69... Nxf5 {[%clk 0:00:16.8]} 70. Kg5 {[%clk 0:00:14.8]}
70... Nd6 {[%clk 0:00:17]} 71. Kf4 {[%clk 0:00:15.7]} 71... Bb6 {[%clk
0:00:16.7]} 72. Kf3 {[%clk 0:00:15.2]} 72... Nb7 {[%clk 0:00:16.8]} 73. Ke2
{[%clk 0:00:15.8]} 73... Kc5 {[%clk 0:00:17.2]} 74. Kd3 {[%clk 0:00:16]} 74...
Kd5 {[%clk 0:00:17.4]} 75. Kc3 {[%clk 0:00:16.1]} 75... Ba5+ {[%clk 0:00:17.9]}
76. Kb3 {[%clk 0:00:16.4]} 76... Nc5+ {[%clk 0:00:18.5]} 77. Ka3 {[%clk
0:00:16.2]} 77... Kc4 {[%clk 0:00:19.1]} 78. Kb2 {[%clk 0:00:15.6]} 78... Kd3
{[%clk 0:00:19.3]} 79. Ka2 {[%clk 0:00:15.5]} 79... Kc2 {[%clk 0:00:19.6]} 80.
Ka3 {[%clk 0:00:16]} 80... Nd3 {[%clk 0:00:20.1]} 81. Ka2 {[%clk 0:00:15.4]}
81... Nb4+ {[%clk 0:00:20.4]} 82. Ka3 {[%clk 0:00:15.8]} 82... Na6 {[%clk
0:00:20.7]} 83. Ka2 {[%clk 0:00:16.7]} 83... Bb4 {[%clk 0:00:21.1]} 84. Ka1
{[%clk 0:00:15.8]} 84... Nc5 {[%clk 0:00:20.8]} 85. Ka2 {[%clk 0:00:16.7]} 85...
Nxa4 {[%clk 0:00:21.1]} 86. Ka1 {[%clk 0:00:16.4]} 86... Nb6 {[%clk 0:00:21.1]}
87. Ka2 {[%clk 0:00:17.3]} 87... Nd5 {[%clk 0:00:21.3]} 88. Ka1 {[%clk
0:00:18.2]} 88... Bd6 {[%clk 0:00:19.6]} 89. Ka2 {[%clk 0:00:19.1]} 89... Bc5
{[%clk 0:00:19]} 90. Ka1 {[%clk 0:00:19.5]} 90... Kb3 {[%clk 0:00:16.8]} 91. Kb1
{[%clk 0:00:19.4]} 91... Be3 {[%clk 0:00:17.1]} 92. Ka1 {[%clk 0:00:19.6]} 92...
Nb4 {[%clk 0:00:17.3]} 93. Kb1 {[%clk 0:00:20.5]} 93... Nc2 {[%clk 0:00:14.4]}
1/2-1/2

[Event "*** Titled Tuesday Blitz"]
[Site "Chess.com"]
[Date "2020.11.10"]
[Round "3"]
[White "SlavenPastar"]
[Black "XDPS"]
[Result "0-1"]
[WhiteElo "2546"]
[BlackElo "2806"]
[TimeControl "180+1"]
[EndTime "10:33:58 PST"]
[Termination "XDPS won on time"]

1. d4 {[%clk 0:03:00.9]} 1... d5 {[%clk 0:02:58.6]} 2. c4 {[%clk 0:02:54.2]}
2... e6 {[%clk 0:02:58.8]} 3. Nc3 {[%clk 0:02:53]} 3... Nf6 {[%clk 0:02:58.6]}
4. Nf3 {[%clk 0:02:52.7]} 4... c6 {[%clk 0:02:58.1]} 5. Bf4 {[%clk 0:02:48.8]}
5... dxc4 {[%clk 0:02:57.6]} 6. a4 {[%clk 0:02:39.1]} 6... Nd5 {[%clk
0:02:49.8]} 7. Bd2 {[%clk 0:02:24]} 7... Nb4 {[%clk 0:02:40.7]} 8. e4 {[%clk
0:02:02.1]} 8... Nd3+ {[%clk 0:02:40.3]} 9. Bxd3 {[%clk 0:02:01.7]} 9... cxd3
{[%clk 0:02:41.2]} 10. Be3 {[%clk 0:01:56]} 10... Be7 {[%clk 0:02:31.9]} 11. O-O
{[%clk 0:01:54.2]} 11... O-O {[%clk 0:02:32.2]} 12. Qxd3 {[%clk 0:01:54.7]}
12... b6 {[%clk 0:02:32.5]} 13. Rfd1 {[%clk 0:01:44.4]} 13... Nd7 {[%clk
0:02:29.7]} 14. a5 {[%clk 0:01:33.1]} 14... bxa5 {[%clk 0:02:11.5]} 15. d5
{[%clk 0:01:19.5]} 15... cxd5 {[%clk 0:02:02.8]} 16. exd5 {[%clk 0:01:19.4]}
16... Nb6 {[%clk 0:01:24.1]} 17. d6 {[%clk 0:00:45.6]} 17... Bf6 {[%clk
0:01:24.4]} 18. Qe4 {[%clk 0:00:46.1]} 18... Qd7 {[%clk 0:00:55.6]} 19. Rxa5
{[%clk 0:00:22.9]} 19... Bb7 {[%clk 0:00:53.8]} 20. Qg4 {[%clk 0:00:22.5]} 20...
Rfc8 {[%clk 0:00:40.7]} 21. Bh6 {[%clk 0:00:18.8]} 21... Rc4 {[%clk 0:00:24]}
22. Qg3 {[%clk 0:00:12.3]} 22... Bxf3 {[%clk 0:00:15.4]} 23. gxf3 {[%clk
0:00:05.1]} 23... Kh8 {[%clk 0:00:15.4]} 24. Be3 {[%clk 0:00:02.9]} 24... Bxc3
{[%clk 0:00:14.3]} 25. bxc3 {[%clk 0:00:01.8]} 25... Nd5 {[%clk 0:00:13.9]} 26.
Raxd5 {[%clk 0:00:02.4]} 26... exd5 {[%clk 0:00:13.4]} 27. Rxd5 {[%clk
0:00:03.3]} 27... Rxc3 {[%clk 0:00:12.9]} 28. Bd4 {[%clk 0:00:03.9]} 28... Rc1+
{[%clk 0:00:13.3]} 29. Kg2 {[%clk 0:00:04.6]} 29... f6 {[%clk 0:00:13.9]} 30.
Rh5 {[%clk 0:00:04.5]} 30... Qf7 {[%clk 0:00:07.7]} 31. Qh4 {[%clk 0:00:04.9]}
31... Qg6+ {[%clk 0:00:08.2]} 32. Kh3 {[%clk 0:00:04.3]} 32... Rd8 {[%clk
0:00:07.8]} 33. Bc5 {[%clk 0:00:03.6]} 33... Rc3 {[%clk 0:00:05.9]} 34. Qg4
{[%clk 0:00:03.7]} 34... Qxg4+ {[%clk 0:00:05.6]} 35. Kxg4 {[%clk 0:00:04.6]}
35... g6 {[%clk 0:00:05.4]} 36. Rd5 {[%clk 0:00:05.1]} 36... Kg7 {[%clk
0:00:05.2]} 37. Bxa7 {[%clk 0:00:04.7]} 37... Rc4+ {[%clk 0:00:05]} 38. Kg3
{[%clk 0:00:04.5]} 38... Rd7 {[%clk 0:00:05.5]} 39. Bb6 {[%clk 0:00:04.2]} 39...
Kf7 {[%clk 0:00:05.9]} 40. Rd3 {[%clk 0:00:03.8]} 40... g5 {[%clk 0:00:03]} 41.
Rd1 {[%clk 0:00:03.8]} 41... h5 {[%clk 0:00:03.4]} 42. h3 {[%clk 0:00:03.4]}
42... Ke6 {[%clk 0:00:03.6]} 43. Kg2 {[%clk 0:00:04]} 43... Rxd6 {[%clk
0:00:03.7]} 44. Re1+ {[%clk 0:00:04.5]} 44... Kf7 {[%clk 0:00:04.2]} 45. Be3
{[%clk 0:00:05.1]} 45... Re6 {[%clk 0:00:04.6]} 46. Ra1 {[%clk 0:00:05.5]} 46...
Kg6 {[%clk 0:00:05.1]} 47. Ra7 {[%clk 0:00:05.9]} 47... Rc8 {[%clk 0:00:05.3]}
48. Rd7 {[%clk 0:00:05.6]} 48... Rce8 {[%clk 0:00:05.7]} 49. Rd3 {[%clk
0:00:05.2]} 49... R8e7 {[%clk 0:00:06.1]} 50. Rb3 {[%clk 0:00:05.4]} 50... Rd7
{[%clk 0:00:06.4]} 51. Ra3 {[%clk 0:00:05.9]} 51... Red6 {[%clk 0:00:06.5]} 52.
Rb3 {[%clk 0:00:05.9]} 52... Rd3 {[%clk 0:00:06.6]} 53. Rb8 {[%clk 0:00:06.4]}
53... Re7 {[%clk 0:00:06.8]} 54. Rg8+ {[%clk 0:00:06.6]} 54... Kf5 {[%clk
0:00:06.8]} 55. Rc8 {[%clk 0:00:07.5]} 55... Rb3 {[%clk 0:00:06.4]} 56. Rc5+
{[%clk 0:00:07.8]} 56... Kg6 {[%clk 0:00:06.4]} 57. Rc8 {[%clk 0:00:08.1]} 57...
Rb2 {[%clk 0:00:06.6]} 58. Rg8+ {[%clk 0:00:08.4]} 58... Kf7 {[%clk 0:00:06.7]}
59. Bd4 {[%clk 0:00:06.3]} 59... Kxg8 {[%clk 0:00:05.3]} 60. Bxb2 {[%clk
0:00:06.4]} 60... Kf7 {[%clk 0:00:05.9]} 61. Bd4 {[%clk 0:00:06.9]} 61... Kg6
{[%clk 0:00:06.3]} 62. Be3 {[%clk 0:00:07.1]} 62... Kf5 {[%clk 0:00:06.8]} 63.
Kg3 {[%clk 0:00:06.3]} 63... Rd7 {[%clk 0:00:06.1]} 64. Kg2 {[%clk 0:00:06]}
64... Rg7 {[%clk 0:00:05.8]} 65. Kg3 {[%clk 0:00:06.2]} 65... Ke5 {[%clk
0:00:06.2]} 66. Kg2 {[%clk 0:00:06.1]} 66... f5 {[%clk 0:00:06.4]} 67. Bd2
{[%clk 0:00:05.3]} 67... Rg6 {[%clk 0:00:06.7]} 68. Be3 {[%clk 0:00:05.7]} 68...
f4 {[%clk 0:00:06.9]} 69. Bd2 {[%clk 0:00:05.8]} 69... Kf5 {[%clk 0:00:07.5]}
70. Bc3 {[%clk 0:00:06.1]} 70... Rc6 {[%clk 0:00:07.7]} 71. Bd4 {[%clk
0:00:06.3]} 71... Rd6 {[%clk 0:00:07.8]} 72. Ba7 {[%clk 0:00:06.7]} 72... Rd3
{[%clk 0:00:08]} 73. Bc5 {[%clk 0:00:06.9]} 73... g4 {[%clk 0:00:08.4]} 74.
hxg4+ {[%clk 0:00:06.6]} 74... hxg4 {[%clk 0:00:09.3]} 75. fxg4+ {[%clk
0:00:07]} 75... Kxg4 {[%clk 0:00:10.2]} 76. Bb6 {[%clk 0:00:06.1]} 76... Rb3
{[%clk 0:00:08.7]} 77. Bc5 {[%clk 0:00:05.6]} 77... Rh3 {[%clk 0:00:08.4]} 78.
Bd4 {[%clk 0:00:05]} 78... Rh7 {[%clk 0:00:08.1]} 79. Bc5 {[%clk 0:00:04.7]}
79... f3+ {[%clk 0:00:08.2]} 80. Kg1 {[%clk 0:00:04.2]} 80... Rc7 {[%clk
0:00:07.2]} 81. Be3 {[%clk 0:00:03.4]} 81... Rc2 {[%clk 0:00:07.7]} 82. Kh2
{[%clk 0:00:02.1]} 82... Re2 {[%clk 0:00:07.7]} 83. Bd4 {[%clk 0:00:02]} 83...
Re4 {[%clk 0:00:07.1]} 84. Be3 {[%clk 0:00:01.6]} 84... Re6 {[%clk 0:00:07.5]}
85. Bd4 {[%clk 0:00:01.9]} 85... Rh6+ {[%clk 0:00:07.7]} 86. Kg1 {[%clk
0:00:01.6]} 86... Rd6 {[%clk 0:00:08.4]} 87. Be3 {[%clk 0:00:01.7]} 87... Kh3
{[%clk 0:00:08]} 88. Bd2 {[%clk 0:00:01.6]} 88... Rxd2 {[%clk 0:00:07.7]} 0-1